lending/lending_fUSD_20240411
["ID","MTS","AMOUNT","RATE_DAILY","PERIOD"]
[322177965,1712863908178,-4300.73,0.00029315,2]
[322177966,1712863908187,-631.27,0.00029315,2]
[322177967,1712863908195,-596.57,0.00029315,2]
[322177968,1712863908204,-500.0,0.00029315,2]
[322177969,1712863908214,-4603.8,0.00029315,2]
[322177970,1712863908225,-2116.62,0.00029315,2]
[322177971,1712863908235,-4305.06,0.00029315,2]
[322177972,1712863908246,-821.16,0.00029315,2]
[322177973,1712863908256,-6457.93,0.00029315,2]
[322177974,1712863908266,-500.0,0.00029315,2]
[322177975,1712863908277,-1483.72,0.00029315,2]
[322177976,1712863908287,-500.0,0.00029315,2]
[322177977,1712863908297,-690.55,0.00029315,2]
[322177978,1712863908308,-500.0,0.00029315,2]
[322177979,1712863908319,-5042.1,0.00029315,2]
[322177980,1712863908331,-812.85,0.00029315,2]
[322177981,1712863908343,-2960.07,0.00029315,2]
[322177982,1712863908354,-500.0,0.00029315,2]
[322177983,1712863908363,-2440.94,0.00029315,2]
[322177984,1712863908372,-5647.2,0.00029315,2]
[322177985,1712863908383,-4454.49,0.00029315,2]
[322177986,1712863908393,-500.0,0.00029315,2]
[322177987,1712863908404,-500.0,0.00029315,2]
[322177988,1712863908414,-1308.46,0.00029315,2]
[322177989,1712863908423,-748.44,0.00029315,2]
[322177990,1712863908435,-500.0,0.00029315,2]
[322177991,1712863908446,-849.93,0.00029315,2]
[322177992,1712863908456,-9726.64,0.00029315,2]
[322177993,1712863908465,-3590.29,0.00029315,2]
[322177994,1712863908475,-501.06,0.00029315,2]
[322177995,1712863908485,-3226.22,0.00029315,2]
[322177996,1712863908494,-500.0,0.00029315,2]
[322177997,1712863908503,-7238.93,0.00029315,2]
[322177998,1712863908513,-837.7,0.00029315,2]
[322177999,1712863908522,-769.9,0.00029315,2]
[322178000,1712863908531,-500.0,0.00029315,2]
[322178001,1712863908541,-866.14,0.00029315,2]
[322178002,1712863908551,-500.0,0.00029315,2]
[322178003,1712863908561,-2879.46,0.00029315,2]
[322178004,1712863908570,-3278.69,0.00029315,2]
[322178005,1712863908580,-1814.55,0.00029315,2]
[322178006,1712863908590,-34421.11,0.00029315,2]
[322178007,1712863908607,-1644.22,0.00029315,2]
[322178008,1712863908618,-500.0,0.00029315,2]
[322178009,1712863908627,-500.0,0.00029315,2]
[322178010,1712863908636,-500.0,0.00029315,2]
[322178011,1712863908648,-689.01,0.00029315,2]
[322178012,1712863908658,-984.54,0.00029315,2]
[322178013,1712863908668,-795.68,0.00029315,2]
[322178014,1712863908678,-3327.03,0.00029315,2]
[322178015,1712863908687,-500.0,0.00029315,2]
[322178016,1712863908697,-1110.72,0.00029315,2]
[322178017,1712863908707,-6971.64,0.00029315,2]
[322178018,1712863908716,-1689.02,0.00029315,2]
[322178019,1712863908726,-4131.95,0.00029315,2]
[322178020,1712863908735,-4548.52,0.00029315,2]
[322178021,1712863908745,-1399.8,0.00029315,2]
[322178022,1712863908756,-588.2,0.00029315,2]
[322178023,1712863908766,-2132.57,0.00029315,2]
[322178024,1712863908775,-2460.93,0.00029315,2]
[322178025,1712863908785,-940.49,0.00029315,2]
[322178026,1712863908794,-3570.47,0.00029315,2]
[322178027,1712863908804,-1384.5,0.00029315,2]
[322178028,1712863908813,-523.38,0.00029315,2]
[322178029,1712863908823,-5204.76,0.00029315,2]
[322178030,1712863908833,-7694.44,0.00029315,2]
[322178031,1712863908842,-500.0,0.00029315,2]
[322178032,1712863908853,-500.0,0.00029315,2]
[322178033,1712863908863,-12079.87,0.00029315,2]
[322178034,1712863908873,-6684.72,0.00029315,2]
[322178035,1712863908883,-526.39,0.00029315,2]
[322178036,1712863908892,-5671.76,0.00029315,2]
[322178037,1712863908902,-2162.52,0.00029315,2]
[322178038,1712863908912,-2445.18,0.00029315,2]
[322178039,1712863908922,-3880.76,0.00029315,2]
[322178040,1712863908932,-500.0,0.00029315,2]
[322178041,1712863908941,-730.94,0.00029315,2]
[322178042,1712863908951,-3432.24,0.00029315,2]
[322178043,1712863908961,-676.92,0.00029315,2]
[322178044,1712863908971,-500.0,0.00029315,2]
[322178045,1712863908981,-534.08,0.00029315,2]
[322178046,1712863908991,-2554.06,0.00029315,2]
[322178047,1712863909001,-2590.36,0.00029315,2]
[322178048,1712863909011,-500.0,0.00029315,2]
[322178049,1712863909021,-1131.02,0.00029315,2]
[322178050,1712863909031,-1707.21,0.00029315,2]
[322178051,1712863909041,-2283.61,0.00029315,2]
[322178052,1712863909050,-7140.03,0.00029315,2]
[322178053,1712863909060,-615.11,0.00029315,2]
[322178054,1712863909070,-731.31,0.00029315,2]
[322178055,1712863909080,-5613.0,0.00029315,2]
[322178056,1712863909090,-500.0,0.00029315,2]
[322178057,1712863909101,-1489.13,0.00029315,2]
[322178058,1712863909111,-500.0,0.00029315,2]
[322178059,1712863909121,-500.0,0.00029315,2]
[322178060,1712863909130,-500.0,0.00029315,2]
[322178061,1712863909139,-585.96,0.00029315,2]
[322178062,1712863909149,-11078.41,0.00029315,2]
[322178063,1712863909159,-2508.39,0.00029315,2]
[322178064,1712863909170,-500.0,0.00029315,2]
[322178065,1712863909179,-1856.58,0.00029315,2]
[322178066,1712863909189,-554.68,0.00029315,2]
[322178067,1712863909198,-2129.83,0.00029315,2]
[322178068,1712863909208,-4134.48,0.00029315,2]
[322178069,1712863909217,-4212.13,0.00029315,2]
[322178070,1712863909227,-3469.4,0.00029315,2]
[322178071,1712863909236,-1073.6,0.00029315,2]
[322178072,1712863909246,-500.0,0.00029315,2]
[322178073,1712863909256,-563.5,0.00029315,2]
[322178074,1712863909267,-8111.23,0.00029315,2]
[322178075,1712863909277,-644.22,0.00029315,2]
[322178076,1712863909287,-526.02,0.00029315,2]
[322178077,1712863909296,-6213.55879472,0.00029328,2]
[322178078,1712863909306,-200.0,0.00029356,2]
[322178079,1712863909317,-153.90892363,0.00029359,2]
[322178080,1712863909326,-330.73,0.000294,2]
[322178081,1712863909337,-4610.41930142,0.00029493,2]
[322178082,1712863909347,-3527.4826107,0.00029493,2]
[322178083,1712863909357,-375.07345743,0.00029494,4]
[322178084,1712863909367,-445.48310641,0.000295,3]
[322178085,1712863909377,-6213.55879472,0.00029554,2]
[322178086,1712863909387,-500.0,0.00029589,2]
[322178087,1712863909396,-558.78,0.00029589,2]
[322178088,1712863909407,-781.35,0.00029589,2]
[322178089,1712863909417,-500.0,0.00029589,2]
[322178090,1712863909427,-577.97,0.00029589,2]
[322178091,1712863909437,-500.0,0.00029589,2]
[322178092,1712863909446,-500.0,0.00029589,2]
[322178093,1712863909456,-508.83,0.00029589,2]
[322178094,1712863909465,-616.34,0.00029589,2]
[322178095,1712863909474,-449.72796847,0.00029589,2]
[322178096,1712863909483,-500.0,0.00029589,2]
[322178097,1712863909492,-500.0,0.00029589,2]
[322178098,1712863909502,-500.0,0.00029589,2]
[322178099,1712863909511,-500.0,0.00029589,2]
[322178100,1712863909522,-500.0,0.00029589,2]
[322178101,1712863909532,-500.0,0.00029589,2]
[322178102,1712863909542,-979.68,0.00029589,2]
[322178103,1712863909552,-678.48,0.00029589,2]
[322178104,1712863909561,-500.0,0.00029589,2]
[322178105,1712863909571,-500.0,0.00029589,2]
[322178106,1712863909581,-500.0,0.00029589,2]
[322178107,1712863909591,-500.0,0.00029589,2]
[322178108,1712863909609,-221.87259808,0.00029589,2]
[322178109,1712863909618,-539.25,0.00029589,2]
[322178110,1712863909628,-956.96,0.00029589,2]
[322178111,1712863909638,-730.66,0.00029589,2]
[322178112,1712863909648,-500.0,0.00029589,2]
[322178113,1712863909658,-520.74,0.00029589,2]
[322178114,1712863909668,-500.0,0.00029589,2]
[322178115,1712863909678,-500.0,0.00029589,2]
[322178116,1712863909688,-582.63,0.00029589,2]
[322178117,1712863909697,-1271.89,0.00029589,2]
[322178118,1712863909707,-500.0,0.00029589,2]
[322178119,1712863909717,-661.97,0.00029589,2]
[322178120,1712863909726,-500.0,0.00029589,2]
[322178121,1712863909735,-500.0,0.00029589,2]
[322178122,1712863909745,-508.0562987,0.00029589,2]
[322178123,1712863909755,-598.1,0.00029589,2]
[322178124,1712863909765,-500.0,0.00029589,2]
[322178125,1712863909775,-638.02137609,0.00029589,2]
[322178126,1712863909785,-500.0,0.00029589,2]
[322178127,1712863909794,-500.0,0.00029589,2]
[322178128,1712863909804,-735.6,0.00029589,2]
[322178129,1712863909813,-500.0,0.00029589,2]
[322178130,1712863909823,-523.87233089,0.00029589,2]
[322178131,1712863909833,-724.36,0.00029589,2]
[322178132,1712863909843,-500.0,0.00029589,2]
[322178133,1712863909854,-500.0,0.00029589,2]
[322178134,1712863909863,-500.0,0.00029589,2]
[322178135,1712863909872,-662.41,0.00029589,2]
[322178136,1712863909882,-500.0,0.00029589,2]
[322178137,1712863909891,-500.0,0.00029589,2]
[322178138,1712863909901,-194.60135849,0.00029589,2]
[322178139,1712863909911,-645.77,0.00029589,2]
[322178140,1712863909921,-500.0,0.00029589,2]
[322178141,1712863909930,-630.18,0.00029589,2]
[322178142,1712863909940,-538.93,0.00029589,2]
[322178143,1712863909949,-1170.3,0.00029589,2]
[322178144,1712863909959,-500.0,0.00029589,2]
[322178145,1712863909970,-500.0,0.00029589,2]
[322178146,1712863909980,-500.0,0.00029589,2]
[322178147,1712863909990,-500.0,0.00029589,2]
[322178148,1712863910001,-500.0,0.00029589,2]
[322178149,1712863910011,-622.48,0.00029589,2]
[322178150,1712863910022,-344.48458701,0.00029589,2]
[322178151,1712863910031,-500.0,0.00029589,2]
[322178152,1712863910042,-881.06,0.00029589,2]
[322178153,1712863910052,-776.07,0.00029589,2]
[322178154,1712863910062,-355.21958442,0.00029589,2]
[322178155,1712863910072,-571.99498099,0.00029589,2]
[322178156,1712863910083,-500.0,0.00029589,2]
[322178157,1712863910093,-500.0,0.00029589,2]
[322178158,1712863910105,-500.0,0.00029589,2]
[322178159,1712863910115,-619.23,0.00029589,2]
[322178160,1712863910125,-609.85,0.00029589,2]
[322178161,1712863910136,-500.0,0.00029589,2]
[322178162,1712863910146,-979.3,0.00029589,2]
[322178163,1712863910156,-300.0,0.00029589,2]
[322178164,1712863910166,-848.99,0.00029589,2]
[322178165,1712863910176,-500.0,0.00029589,2]
[322178166,1712863910185,-500.0,0.00029589,2]
[322178167,1712863910195,-500.0,0.00029589,2]
[322178168,1712863910205,-561.42,0.00029589,2]
[322178169,1712863910215,-556.26,0.00029589,2]
[322178170,1712863910225,-371.03124625,0.00029589,2]
[322178171,1712863910235,-750.5,0.00029589,2]
[322178172,1712863910244,-795.39,0.00029589,2]
[322178173,1712863910254,-500.0,0.00029589,2]
[322178174,1712863910277,-154.01,0.00029589,2]
[322178175,1712863910301,-500.0,0.00029589,2]
[322178176,1712863910312,-821.11,0.00029589,2]
[322178177,1712863910323,-500.0,0.00029589,2]
[322178178,1712863910334,-520.41,0.00029589,2]
[322178179,1712863910344,-500.0,0.00029589,2]
[322178180,1712863910355,-500.0,0.00029589,2]
[322178181,1712863910366,-649.6,0.00029589,2]
[322178182,1712863910376,-855.37,0.00029589,2]
[322178183,1712863910388,-500.0,0.00029589,2]
[322178184,1712863910398,-649.39,0.00029589,2]
[322178185,1712863910409,-832.74,0.00029589,2]
[322178186,1712863910419,-500.0,0.00029589,2]
[322178187,1712863910430,-500.0,0.00029589,2]
[322178188,1712863910441,-2180.86,0.00029589,2]
[322178189,1712863910452,-1399.6,0.00029589,2]
[322178190,1712863910463,-500.0,0.00029589,2]
[322178191,1712863910708,-500.0,0.00029589,2]
[322178192,1712863910718,-626.17,0.00029589,2]
[322178193,1712863910728,-1778.24,0.00029589,2]
[322178194,1712863910738,-1158.17,0.00029589,2]
[322178195,1712863910747,-500.0,0.00029589,2]
[322178196,1712863910756,-500.0,0.00029589,2]
[322178197,1712863910766,-500.0,0.00029589,2]
[322178198,1712863910776,-638.17,0.00029589,2]
[322178199,1712863910789,-542.85,0.00029589,2]
[322178200,1712863910799,-500.0,0.00029589,2]
[322178201,1712863910808,-1858.63,0.00029589,2]
[322178202,1712863910818,-500.0,0.00029589,2]
[322178203,1712863910827,-776.82,0.00029589,2]
[322178204,1712863910837,-500.0,0.00029589,2]
[322178205,1712863910847,-500.0,0.00029589,2]
[322178206,1712863910857,-524.59,0.00029589,2]
[322178207,1712863910867,-500.0,0.00029589,2]
[322178208,1712863910876,-500.0,0.00029589,2]
[322178209,1712863910885,-500.0,0.00029589,2]
[322178210,1712863910895,-539.06,0.00029589,2]
[322178211,1712863910905,-500.0,0.00029589,2]
[322178212,1712863910915,-1089.41,0.00029589,2]
[322178213,1712863910925,-1111.79,0.00029589,2]
[322178214,1712863910935,-204.47684822,0.00029589,2]
[322178215,1712863910945,-656.89,0.00029589,2]
[322178216,1712863910955,-500.0,0.00029589,2]
[322178217,1712863910965,-156.140992,0.00029589,7]
[322178218,1712863910975,-500.0,0.00029589,2]
[322178219,1712863910985,-156.141002,0.00029589,7]
[322178220,1712863910995,-854.73,0.00029589,2]
[322178221,1712863911005,-500.0,0.00029589,2]
[322178222,1712863911017,-2876.44,0.00029589,2]
[322178223,1712863911028,-590.9,0.00029589,2]
[322178224,1712863911039,-1195.47,0.00029589,2]
[322178225,1712863911049,-1802.49,0.00029589,2]
[322178226,1712863911059,-500.0,0.00029589,2]
[322178227,1712863911069,-500.0,0.00029589,2]
[322178228,1712863911079,-687.99,0.00029589,2]
[322178229,1712863911089,-500.0,0.00029589,2]
[322178230,1712863911099,-688.71,0.00029589,2]
[322178231,1712863911109,-500.0,0.00029589,2]
[322178232,1712863911120,-500.0,0.00029589,2]
[322178233,1712863911130,-812.38,0.00029589,2]
[322178234,1712863911140,-500.0,0.00029589,2]
[322178235,1712863911150,-500.0,0.00029589,2]
[322178236,1712863911160,-911.26,0.00029589,2]
[322178237,1712863911170,-1387.07,0.00029589,2]
[322178238,1712863911180,-1238.46,0.00029589,2]
[322178239,1712863911190,-701.45,0.00029589,2]
[322178240,1712863911200,-500.0,0.00029589,2]
[322178241,1712863911209,-1637.96,0.00029589,2]
[322178242,1712863911219,-500.0,0.00029589,2]
[322178243,1712863911229,-500.0,0.00029589,2]
[322178244,1712863911238,-500.0,0.00029589,2]
[322178245,1712863911249,-727.26,0.00029589,2]
[322178246,1712863911258,-500.0,0.00029589,2]
[322178247,1712863911268,-500.0,0.00029589,2]
[322178248,1712863911278,-951.93,0.00029589,2]
[322178249,1712863911287,-912.94,0.00029589,2]
[322178250,1712863911297,-1360.26,0.00029589,2]
[322178251,1712863911306,-1633.79,0.00029589,2]
[322178252,1712863911316,-571.0,0.00029589,2]
[322178253,1712863911325,-500.0,0.00029589,2]
[322178254,1712863911335,-1497.81,0.00029589,2]
[322178255,1712863911345,-500.0,0.00029589,2]
[322178256,1712863911355,-1592.01,0.00029589,2]
[322178257,1712863911364,-1649.12,0.00029589,2]
[322178258,1712863911374,-980.99,0.00029589,2]
[322178259,1712863911383,-500.0,0.00029589,2]
[322178260,1712863911393,-500.0,0.00029589,2]
[322178261,1712863911403,-969.84,0.00029589,2]
[322178262,1712863911413,-500.0,0.00029589,2]
[322178263,1712863911422,-500.0,0.00029589,2]
[322178264,1712863911435,-500.0,0.00029589,2]
[322178265,1712863911446,-500.0,0.00029589,2]
[322178266,1712863911455,-1761.18,0.00029589,2]
[322178267,1712863911466,-1243.08,0.00029589,2]
[322178268,1712863911476,-1689.77,0.00029589,2]
[322178269,1712863911495,-500.0,0.00029589,2]
[322178270,1712863911509,-500.0,0.00029589,2]
[322178271,1712863911519,-1026.47,0.00029589,2]
[322178272,1712863911530,-500.0,0.00029589,2]
[322178273,1712863911540,-910.91,0.00029589,2]
[322178274,1712863911550,-500.0,0.00029589,2]
[322178275,1712863911560,-500.0,0.00029589,2]
[322178276,1712863911570,-1567.65,0.00029589,2]
[322178277,1712863911581,-500.0,0.00029589,2]
[322178278,1712863911591,-786.72,0.00029589,2]
[322178279,1712863911607,-1996.86,0.00029589,2]
[322178280,1712863911617,-1085.94,0.00029589,2]
[322178281,1712863911628,-500.0,0.00029589,2]
[322178282,1712863911639,-500.0,0.00029589,2]
[322178283,1712863911649,-816.08,0.00029589,2]
[322178284,1712863911658,-1561.86,0.00029589,2]
[322178285,1712863911668,-1269.43,0.00029589,2]
[322178286,1712863911678,-1877.69,0.00029589,2]
[322178287,1712863911689,-1972.42,0.00029589,2]
[322178288,1712863911699,-2113.97,0.00029589,2]
[322178289,1712863911709,-966.14,0.00029589,2]
[322178290,1712863911719,-500.0,0.00029589,2]
[322178291,1712863911729,-761.76,0.00029589,2]
[322178292,1712863911739,-500.0,0.00029589,2]
[322178293,1712863911748,-1089.8,0.00029589,2]
[322178294,1712863911758,-2037.49,0.00029589,2]
[322178295,1712863911767,-1173.13,0.00029589,2]
[322178296,1712863911777,-793.23,0.00029589,2]
[322178297,1712863911787,-500.0,0.00029589,2]
[322178298,1712863911796,-500.0,0.00029589,2]
[322178299,1712863911806,-2726.32,0.00029589,2]
[322178300,1712863911815,-500.0,0.00029589,2]
[322178301,1712863911825,-692.78,0.00029589,2]
[322178302,1712863911835,-746.58,0.00029589,2]
[322178303,1712863911845,-1198.98,0.00029589,2]
[322178304,1712863911859,-1215.62,0.00029589,2]
[322178305,1712863911870,-1357.74,0.00029589,2]
[322178306,1712863911880,-1787.05,0.00029589,2]
[322178307,1712863911889,-773.26,0.00029589,2]
[322178308,1712863911899,-500.0,0.00029589,2]
[322178309,1712863911909,-500.0,0.00029589,2]
[322178310,1712863911919,-1160.82,0.00029589,2]
[322178311,1712863911929,-856.28,0.00029589,2]
[322178312,1712863911939,-2284.7,0.00029589,2]
[322178313,1712863911949,-500.0,0.00029589,2]
[322178314,1712863911958,-500.0,0.00029589,2]
[322178315,1712863911968,-1712.28,0.00029589,2]
[322178316,1712863911978,-1447.07,0.00029589,2]
[322178317,1712863911988,-500.0,0.00029589,2]
[322178318,1712863911998,-1043.02,0.00029589,2]
[322178319,1712863912008,-999.23,0.00029589,2]
[322178320,1712863912018,-880.42,0.00029589,2]
[322178321,1712863912027,-500.0,0.00029589,2]
[322178322,1712863912037,-1769.53,0.00029589,2]
[322178323,1712863912047,-909.93,0.00029589,2]
[322178324,1712863912056,-370.34,0.00029589,2]
[322178325,1712863912066,-731.37,0.00029589,2]
[322178326,1712863912076,-563.4,0.00029589,2]
[322178327,1712863912086,-2584.91,0.00029589,2]
[322178328,1712863912096,-500.0,0.00029589,2]
[322178329,1712863912109,-500.0,0.00029589,2]
[322178330,1712863912119,-500.0,0.00029589,2]
[322178331,1712863912128,-500.0,0.00029589,2]
[322178332,1712863912139,-836.78,0.00029589,2]
[322178333,1712863912154,-500.0,0.00029589,2]
[322178334,1712863912174,-500.0,0.00029589,2]
[322178335,1712863912184,-500.0,0.00029589,2]
[322178336,1712863912195,-500.0,0.00029589,2]
[322178337,1712863912205,-1928.08,0.00029589,2]
[322178338,1712863912216,-1054.17,0.00029589,2]
[322178339,1712863912226,-500.0,0.00029589,2]
[322178340,1712863912237,-1287.39,0.00029589,2]
[322178341,1712863912247,-1131.99,0.00029589,2]
[322178342,1712863912257,-500.0,0.00029589,2]
[322178343,1712863912267,-670.56,0.00029589,2]
[322178344,1712863912279,-1218.52,0.00029589,2]
[322178345,1712863912289,-500.0,0.00029589,2]
[322178346,1712863912299,-500.0,0.00029589,2]
[322178347,1712863912309,-404.76304816,0.00029589,2]
[322178348,1712863912321,-3023.85,0.00029589,2]
[322178349,1712863912330,-1925.75,0.00029589,2]
[322178350,1712863912341,-1413.49,0.00029589,2]
[322178351,1712863912352,-1314.42,0.00029589,2]
[322178352,1712863912361,-946.59,0.00029589,2]
[322178353,1712863912371,-500.0,0.00029589,2]
[322178354,1712863912380,-500.0,0.00029589,2]
[322178355,1712863912390,-1299.32,0.00029589,2]
[322178356,1712863912401,-657.55,0.00029589,2]
[322178357,1712863912411,-1451.55,0.00029589,2]
[322178358,1712863912422,-1299.55,0.00029589,2]
[322178359,1712863912432,-1859.86,0.00029589,2]
[322178360,1712863912442,-500.0,0.00029589,2]
[322178361,1712863912455,-500.0,0.00029589,2]
[322178362,1712863912467,-500.0,0.00029589,2]
[322178363,1712863912477,-1118.53,0.00029589,2]
[322178364,1712863912486,-500.0,0.00029589,2]
[322178365,1712863912496,-500.0,0.00029589,2]
[322178366,1712863912506,-500.0,0.00029589,2]
[322178367,1712863912517,-500.0,0.00029589,2]
[322178368,1712863912532,-690.5,0.00029589,2]
[322178369,1712863912543,-820.46,0.00029589,2]
[322178370,1712863912553,-2701.17,0.00029589,2]
[322178371,1712863912563,-1556.05,0.00029589,2]
[322178372,1712863912575,-1746.83,0.00029589,2]
[322178373,1712863912587,-500.0,0.00029589,2]
[322178374,1712863912597,-500.0,0.00029589,2]
[322178375,1712863912611,-1236.35,0.00029589,2]
[322178376,1712863912622,-500.0,0.00029589,2]
[322178377,1712863912633,-1904.13,0.00029589,2]
[322178378,1712863912643,-1836.84,0.00029589,2]
[322178379,1712863912653,-500.0,0.00029589,2]
[322178380,1712863912665,-2054.27,0.00029589,2]
[322178381,1712863912675,-1139.8,0.00029589,2]
[322178382,1712863912687,-500.0,0.00029589,2]
[322178383,1712863912697,-500.0,0.00029589,2]
[322178384,1712863912707,-1133.86,0.00029589,2]
[322178385,1712863912717,-500.0,0.00029589,2]
[322178386,1712863912727,-500.0,0.00029589,2]
[322178387,1712863912736,-1519.24,0.00029589,2]
[322178388,1712863912746,-1150.3,0.00029589,2]
[322178389,1712863912757,-500.0,0.00029589,2]
[322178390,1712863912767,-37031.74,0.00029589,2]
[322178391,1712863912776,-500.0,0.00029589,2]
[322178392,1712863912787,-500.0,0.00029589,2]
[322178393,1712863912797,-2252.02,0.00029589,2]
[322178394,1712863912808,-1665.9,0.00029589,2]
[322178395,1712863912818,-2019.36,0.00029589,2]
[322178396,1712863912829,-500.0,0.00029589,2]
[322178397,1712863912841,-500.0,0.00029589,2]
[322178398,1712863912851,-500.0,0.00029589,2]
[322178399,1712863912860,-3193.7,0.00029589,2]
[322178400,1712863912874,-978.88,0.00029589,2]
[322178401,1712863912885,-975.54,0.00029589,2]
[322178402,1712863912898,-805.26,0.00029589,2]
[322178403,1712863912907,-1224.29,0.00029589,2]
[322178404,1712863912917,-500.0,0.00029589,2]
[322178405,1712863912928,-672.73,0.00029589,2]
[322178406,1712863912937,-500.0,0.00029589,2]
[322178407,1712863912947,-2055.0,0.00029589,2]
[322178408,1712863912956,-1014.43,0.00029589,2]
[322178409,1712863912967,-500.0,0.00029589,2]
[322178410,1712863912979,-638.51,0.00029589,2]
[322178411,1712863912990,-1372.0,0.00029589,2]
[322178412,1712863913000,-941.68,0.00029589,2]
[322178413,1712863913010,-3008.91,0.00029589,2]
[322178414,1712863913021,-2757.19,0.00029589,2]
[322178415,1712863913034,-500.0,0.00029589,2]
[322178416,1712863913044,-500.0,0.00029589,2]
[322178417,1712863913055,-2271.32,0.00029589,2]
[322178418,1712863913071,-687.63,0.00029589,2]
[322178419,1712863913081,-3074.05,0.00029589,2]
[322178420,1712863913091,-1265.86,0.00029589,2]
[322178421,1712863913101,-500.0,0.00029589,2]
[322178422,1712863913110,-500.000001,0.00029589,2]
[322178423,1712863913120,-500.0,0.00029589,2]
[322178424,1712863913130,-1938.09,0.00029589,2]
[322178425,1712863913140,-4379.49,0.00029589,2]
[322178426,1712863913150,-1283.37,0.00029589,2]
[322178427,1712863913159,-1885.35,0.00029589,2]
[322178428,1712863913271,-4346.86,0.00029589,2]
[322178429,1712863913281,-1155.02,0.00029589,2]
[322178430,1712863913290,-500.0,0.00029589,2]
[322178431,1712863913299,-53501.75,0.00029589,2]
[322178432,1712863913309,-2310.28,0.00029589,2]
[322178433,1712863913319,-1799.15,0.00029589,2]
[322178434,1712863913328,-1949.19,0.00029589,2]
[322178435,1712863913338,-1577.48,0.00029589,2]
[322178436,1712863913347,-522.11,0.00029589,2]
[322178437,1712863913358,-1254.45,0.00029589,2]
[322178438,1712863913367,-2414.38,0.00029589,2]
[322178439,1712863913378,-18239.28,0.00029589,2]
[322178440,1712863913389,-500.0,0.00029589,2]
[322178441,1712863913400,-1269.78,0.00029589,2]
[322178442,1712863913411,-907.51,0.00029589,2]
[322178443,1712863913421,-4087.64,0.00029589,2]
[322178444,1712863913430,-4035.48,0.00029589,2]
[322178445,1712863913442,-1472.75,0.00029589,2]
[322178446,1712863913453,-569.15,0.00029589,2]
[322178447,1712863913464,-500.0,0.00029589,2]
[322178448,1712863913474,-500.0,0.00029589,2]
[322178449,1712863913483,-3443.33,0.00029589,2]
[322178450,1712863913494,-500.0,0.00029589,2]
[322178451,1712863913504,-715.43,0.00029589,2]
[322178452,1712863913514,-1468.65,0.00029589,2]
[322178453,1712863913525,-4438.94,0.00029589,2]
[322178454,1712863913537,-500.0,0.00029589,2]
[322178455,1712863913548,-500.0,0.00029589,2]
[322178456,1712863913560,-947.32,0.00029589,2]
[322178457,1712863913575,-1460.88,0.00029589,2]
[322178458,1712863913585,-1078.14,0.00029589,2]
[322178459,1712863913595,-500.0,0.00029589,2]
[322178460,1712863913609,-4053.95,0.00029589,2]
[322178461,1712863913618,-742.27,0.00029589,2]
[322178462,1712863913629,-500.0,0.00029589,2]
[322178463,1712863913639,-500.0,0.00029589,2]
[322178464,1712863913648,-1767.47,0.00029589,2]